[Event "44th Chess Olympiad Open 2022"]
[Site "Chennai"]
[Date "2022.08.02"]
[Round "5.70"]
[White "Kovacova, Zuzana"]
[Black "Husbands, Orlando"]
[Result "1/2-1/2"]
[WhiteElo "2050"]
[BlackElo "2353"]
[Annotator "RC"]
[PlyCount "116"]
[EventDate "2022.??.??"]
[TimeControl "60"]

1. e4 {[%emt 0:00:04]} c5 {[%emt 0:00:09]} 2. Nc3 {[%emt 0:00:05]} d6 {[%emt 0:
00:00]} 3. g3 {[%emt 0:00:17]} Nc6 {[%emt 0:00:14]} 4. Bg2 {[%emt 0:00:18]} g6
{[%emt 0:00:06]} 5. d3 {[%emt 0:00:18]} Bg7 {[%emt 0:00:08]} 6. Nge2 {[%emt 0:
00:00]} e6 {[%emt 0:03:17]} 7. O-O {[%emt 0:00:50]} Nge7 {[%emt 0:00:09]} 8.
Be3 {[%emt 0:01:08]} Nd4 {[%emt 0:04:52]} 9. f4 {[%emt 0:17:35]} h5 {[%emt 0:
00:00]} 10. Rb1 {[%emt 0:10:03]} Nec6 {[%emt 0:03:29]} 11. a3 {[%emt 0:00:23]}
Qa5 {[%emt 0:09:36]} 12. Bd2 {[%emt 0:01:45]} Bd7 {[%emt 0:07:58]} 13. Nd5 {
[%emt 0:06:50]} Qd8 {[%emt 0:00:56]} 14. Ne3 {[%emt 0:00:13]} b5 {[%emt 0:00:
00]} 15. c3 {[%emt 0:01:44]} Nxe2+ {[%emt 0:06:41]} 16. Qxe2 {[%emt 0:00:06]}
O-O {[%emt 0:00:31]} 17. f5 {[%emt 0:03:25]} Ne5 {[%emt 0:03:08]} 18. Rbd1 {
[%emt 0:12:11]} Rc8 {[%emt 0:01:11]} 19. Bc1 {[%emt 0:05:40]} Re8 {[%emt 0:00:
00]} 20. Qf2 {[%emt 0:07:12]} c4 {[%emt 0:06:01]} 21. dxc4 {[%emt 0:01:14]}
bxc4 {[%emt 0:00:03]} 22. fxg6 {[%emt 0:01:56]} fxg6 {[%emt 0:00:49]} 23. Rxd6
{[%emt 0:02:31]} Qe7 {[%emt 0:01:42]} 24. Rdd1 {[%emt 0:01:18]} Nd3 {[%emt 0:
00:00]} 25. Qc2 {[%emt 0:01:29]} Bh6 {[%emt 0:06:23]} 26. Nxc4 {[%emt 0:03:39]}
Qc5+ {[%emt 0:07:13]} 27. Kh1 {[%emt 0:00:15]} Nxc1 {[%emt 0:00:25]} 28. Nd6 {
[%emt 0:00:11]} Bb5 {[%emt 0:00:51]} 29. Nxe8 {[%emt 0:11:08]} Bxf1 {[%emt 0:
00:00]} 30. Nf6+ {[%emt 0:00:02]} Kg7 {[%emt 0:01:14]} 31. Rxf1 {[%emt 0:00:06]
} Rf8 {[%emt 0:04:02]} 32. Nd7 {[%emt 0:03:58]} Rxf1+ {[%emt 0:00:03]} 33. Bxf1
{[%emt 0:00:02]} Qd6 {[%emt 0:00:00]} 34. Bb5 {[%emt 0:00:38]} Be3 {[%emt 0:00:
00]} 35. b4 {[%emt 0:00:51]} a6 {[%emt 0:00:00]} 36. Ba4 {[%emt 0:00:43]} h4 {
[%emt 0:00:00]} 37. Qd1 {[%emt 0:01:51]} Nd3 {[%emt 0:00:10]} 38. Kg2 {[%emt 0:
00:00]} Ba7 {[%emt 0:03:04]} 39. Qf1 {[%emt 0:01:56]} Nf2 {[%emt 0:02:30]} 40.
Nc5 {[%emt 0:02:40]} hxg3 {[%emt 0:01:29]} 41. hxg3 {[%emt 0:30:08]} Ng4 {
[%emt 0:30:02]} 42. Qe2 {[%emt 0:02:33]} Ne5 {[%emt 0:00:30]} 43. Nxa6 {
[%emt 0:00:00]} Nd3 {[%emt 0:00:00]} 44. Bc2 {[%emt 0:00:00]} Nc1 {[%emt 0:00:
00]} 45. e5 {[%emt 0:00:00]} Qc6+ {[%emt 0:00:00]} 46. Be4 {[%emt 0:00:00]}
Qxc3 {[%emt 0:00:00]} 47. Qg4 {[%emt 0:00:00]} Qxe5 {[%emt 0:00:00]} 48. Qxg6+
{[%emt 0:00:00]} Kf8 {[%emt 0:00:00]} 49. Qh6+ {[%emt 0:00:00]} Ke7 {[%emt 0:
00:00]} 50. Bf3 {[%emt 0:00:00]} Be3 {[%emt 0:00:00]} 51. Qh7+ {[%emt 0:00:00]}
Kd8 {[%emt 0:00:00]} 52. Qc2 {[%emt 0:00:00]} Qd6 {[%emt 0:00:00]} 53. b5 {
[%emt 0:00:00]} Nd3 {[%emt 0:00:00]} 54. Qd1 {[%emt 0:00:00]} Bf2 {[%emt 0:00:
00]} 55. g4 {[%emt 0:00:00]} Ke7 {[%emt 0:00:00]} 56. Kf1 {[%emt 0:00:00]} Bb6
{[%emt 0:00:00]} 57. Nb4 {[%emt 0:02:08]} Qh2 {[%emt 0:01:17]} 58. Nxd3 {
[%emt 0:00:24]} Qg1+ {[%emt 0:00:03]} 1/2-1/2

[Event "44th Chess Olympiad Open 2022"]
[Site "Chennai"]
[Date "2022.08.02"]
[Round "5.70"]
[White "Gontcharov, Serguei"]
[Black "Edwards, Emar"]
[Result "0-1"]
[WhiteElo "1864"]
[BlackElo "1695"]
[Annotator "NA RC"]
[PlyCount "58"]
[EventDate "2022.??.??"]
[TimeControl "60"]

1. e4 {[%emt 0:00:03]} c5 {[%emt 0:00:06]} 2. Nf3 {[%emt 0:00:09]} Nc6 {
[%emt 0:00:06]} 3. d4 {[%emt 0:00:10]} cxd4 {[%emt 0:00:04]} 4. Nxd4 {[%emt 0:
00:00]} Nf6 {[%emt 0:00:05]} 5. Nc3 {[%emt 0:00:18]} e5 {[%emt 0:00:26]} 6.
Ndb5 {[%emt 0:00:50]} d6 {[%emt 0:00:06]} 7. Bg5 {[%emt 0:00:12]} a6 {[%emt 0:
00:00]} 8. Na3 {[%emt 0:00:05]} b5 {[%emt 0:00:04]} 9. Nd5 {[%emt 0:01:29]} Be7
{[%emt 0:00:20]} 10. Bxf6 {[%emt 0:00:07]} Bxf6 {[%emt 0:00:06]} 11. c3 {
[%emt 0:00:08]} O-O {[%emt 0:00:17]} 12. Nc2 {[%emt 0:00:36]} Rb8 {[%emt 0:00:
00]} 13. Be2 {[%emt 0:03:24]} Bg5 {[%emt 0:00:07]} 14. O-O {[%emt 0:02:07]} Ne7
{[%emt 0:00:10]} 15. Ncb4 {[%emt 0:04:51]} Bb7 {[%emt 0:03:04]} 16. Nxe7+ {
[%emt 0:05:57]} Bxe7 {[%emt 0:01:32]} 17. Nd5 {[%emt 0:02:40]} Kh8 {[%emt 0:00:
00]} 18. g4 {[%emt 0:10:32]} Bg5 {[%emt 0:05:31]} 19. Bf3 {[%emt 0:06:41]} Bxd5
{[%emt 0:05:56]} 20. Qxd5 {[%emt 0:00:29]} Bf4 {[%emt 0:00:29]} 21. Bg2 {
[%emt 0:02:19]} Qh4 {[%emt 0:22:30]} 22. h3 {[%emt 0:00:57]} h5 {[%emt 0:00:13]
} 23. Qd1 {[%emt 0:01:03]} g6 {[%emt 0:06:26]} 24. Qf3 {[%emt 0:19:05]} f5 {
[%emt 0:08:41]} 25. exf5 {[%emt 0:01:44]} gxf5 {[%emt 0:00:39]} 26. gxh5 {
[%emt 0:04:48]} e4 {[%emt 0:02:30]} 27. Qe2 {[%emt 0:06:40]} Rg8 {[%emt 0:00:
00]} 28. f3 {[%emt 0:01:32]} Rxg2+ {[%emt 0:02:57]} 29. Qxg2 {[%emt 0:00:07]}
Rg8 {[%emt 0:00:10]} 0-1

[Event "44th Chess Olympiad Open 2022"]
[Site "Chennai"]
[Date "2022.08.02"]
[Round "5.70"]
[White "Parsons, Justin"]
[Black "Gontcharov, Dimitri"]
[Result "1-0"]
[WhiteElo "1749"]
[BlackElo "1448"]
[Annotator "NA RC"]
[PlyCount "31"]
[EventDate "2022.??.??"]
[TimeControl "60"]

1. d4 {[%emt 0:00:13]} d5 {[%emt 0:00:08]} 2. Nf3 {[%emt 0:00:13]} Nf6 {
[%emt 0:00:13]} 3. c4 {[%emt 0:00:23]} e6 {[%emt 0:00:12]} 4. Nc3 {[%emt 0:00:
00]} Be7 {[%emt 0:00:55]} 5. Bg5 {[%emt 0:03:40]} O-O {[%emt 0:00:57]} 6. e3 {
[%emt 0:00:22]} Nbd7 {[%emt 0:08:10]} 7. Be2 {[%emt 0:01:32]} Re8 {[%emt 0:00:
00]} 8. O-O {[%emt 0:00:35]} h6 {[%emt 0:17:34]} 9. Bh4 {[%emt 0:02:34]} Nf8 {
[%emt 0:02:36]} 10. Rc1 {[%emt 0:05:42]} c6 {[%emt 0:03:23]} 11. Qc2 {[%emt 0:
00:00]} Ng6 {[%emt 0:17:47]} 12. Bg3 {[%emt 0:02:59]} b6 {[%emt 0:12:59]} 13.
Bd3 {[%emt 0:02:28]} Nf8 {[%emt 0:08:17]} 14. cxd5 {[%emt 0:08:14]} Nxd5 {
[%emt 0:00:00]} 15. Nxd5 {[%emt 0:03:55]} cxd5 {[%emt 0:00:00]} 16. Bc7 {
[%emt 0:00:00]} 1-0

[Event "44th Chess Olympiad Open 2022"]
[Site "Chennai"]
[Date "2022.08.02"]
[Round "5.71"]
[White "Traore, Bakary"]
[Black "Kamara, Ansumana"]
[Result "1-0"]
[WhiteElo "2181"]
[BlackElo "1896"]
[Annotator "NA RC"]
[PlyCount "123"]
[EventDate "2022.??.??"]
[TimeControl "60"]

1. e4 {[%emt 0:00:13]} c5 {[%emt 0:00:12]} 2. Nf3 {[%emt 0:00:37]} d6 {[%emt 0:
00:00]} 3. d4 {[%emt 0:00:10]} cxd4 {[%emt 0:00:07]} 4. Nxd4 {[%emt 0:00:10]}
Nf6 {[%emt 0:00:14]} 5. Nc3 {[%emt 0:00:08]} a6 {[%emt 0:00:08]} 6. Bg5 {
[%emt 0:02:20]} e6 {[%emt 0:00:32]} 7. f4 {[%emt 0:00:12]} Be7 {[%emt 0:00:18]}
8. Qf3 {[%emt 0:02:30]} Qc7 {[%emt 0:00:21]} 9. O-O-O {[%emt 0:01:31]} Nbd7 {
[%emt 0:00:11]} 10. g4 {[%emt 0:00:38]} b5 {[%emt 0:00:27]} 11. Bxf6 {[%emt 0:
00:00]} Nxf6 {[%emt 0:00:27]} 12. g5 {[%emt 0:00:55]} Nd7 {[%emt 0:00:13]} 13.
f5 {[%emt 0:02:40]} Bxg5+ {[%emt 0:02:39]} 14. Kb1 {[%emt 0:00:18]} Ne5 {
[%emt 0:03:55]} 15. Qh5 {[%emt 0:01:10]} Be7 {[%emt 0:04:22]} 16. fxe6 {
[%emt 0:01:43]} g6 {[%emt 0:01:01]} 17. Nd5 {[%emt 0:06:22]} Qb7 {[%emt 0:00:
00]} 18. exf7+ {[%emt 0:01:05]} Nxf7 {[%emt 0:03:56]} 19. Qe2 {[%emt 0:02:47]}
O-O {[%emt 0:00:00]} 20. h4 {[%emt 0:00:17]} Ne5 {[%emt 0:00:00]} 21. Bh3 {
[%emt 0:00:16]} Bxh3 {[%emt 0:06:56]} 22. Rxh3 {[%emt 0:00:21]} Rf7 {[%emt 0:
00:00]} 23. h5 {[%emt 0:06:09]} Re8 {[%emt 0:05:21]} 24. hxg6 {[%emt 0:01:49]}
Nxg6 {[%emt 0:00:24]} 25. Qg4 {[%emt 0:00:24]} Qc8 {[%emt 0:01:22]} 26. Nf5 {
[%emt 0:01:09]} Bf8 {[%emt 0:00:51]} 27. Rdh1 {[%emt 0:00:30]} Qe6 {[%emt 0:00:
00]} 28. Nf4 {[%emt 0:07:45]} Qxe4 {[%emt 0:14:57]} 29. Qxg6+ {[%emt 0:01:06]}
Rg7 {[%emt 0:00:15]} 30. Nh6+ {[%emt 0:01:36]} Kh8 {[%emt 0:00:31]} 31. Qxe4 {
[%emt 0:04:20]} Rxe4 {[%emt 0:01:47]} 32. Nf5 {[%emt 0:00:46]} Rxf4 {[%emt 0:
00:00]} 33. Nxg7 {[%emt 0:00:23]} Bxg7 {[%emt 0:00:30]} 34. Rxh7+ {[%emt 0:00:
00]} Kg8 {[%emt 0:00:10]} 35. R7h4 {[%emt 0:00:36]} Rxh4 {[%emt 0:03:30]} 36.
Rxh4 {[%emt 0:00:20]} Kf7 {[%emt 0:00:08]} 37. c3 {[%emt 0:00:28]} a5 {[%emt 0:
00:00]} 38. a4 {[%emt 0:00:25]} Bf6 {[%emt 0:01:46]} 39. Rh7+ {[%emt 0:01:53]}
Kg6 {[%emt 0:02:28]} 40. Rd7 {[%emt 0:04:16]} bxa4 {[%emt 0:01:06]} 41. Rxd6 {
[%emt 0:30:35]} Kf7 {[%emt 0:30:46]} 42. Ka2 {[%emt 0:01:18]} Be5 {[%emt 0:00:
00]} 43. Ra6 {[%emt 0:00:13]} Ke7 {[%emt 0:03:02]} 44. Rxa5 {[%emt 0:00:24]}
Bd6 {[%emt 0:00:31]} 45. Ra7+ {[%emt 0:00:25]} Kd8 {[%emt 0:00:18]} 46. Rxa4 {
[%emt 0:00:09]} Kc7 {[%emt 0:00:15]} 47. Ra6 {[%emt 0:00:18]} Bh2 {[%emt 0:00:
00]} 48. b4 {[%emt 0:00:07]} Kb7 {[%emt 0:00:08]} 49. Rg6 {[%emt 0:00:31]} Be5
{[%emt 0:03:19]} 50. Kb3 {[%emt 0:00:09]} Ka7 {[%emt 0:01:16]} 51. c4 {[%emt 0:
00:00]} Kb7 {[%emt 0:00:48]} 52. c5 {[%emt 0:00:07]} Bh2 {[%emt 0:00:17]} 53.
Kc4 {[%emt 0:00:07]} Be5 {[%emt 0:00:22]} 54. Re6 {[%emt 0:00:19]} Bh2 {
[%emt 0:01:03]} 55. Re7+ {[%emt 0:00:23]} Kc8 {[%emt 0:00:54]} 56. Rh7 {
[%emt 0:00:24]} Bg3 {[%emt 0:01:24]} 57. b5 {[%emt 0:00:37]} Kb8 {[%emt 0:00:
00]} 58. b6 {[%emt 0:00:21]} Ka8 {[%emt 0:01:20]} 59. c6 {[%emt 0:02:01]} Bf4 {
[%emt 0:01:38]} 60. Kb5 {[%emt 0:00:32]} Be5 {[%emt 0:01:21]} 61. Ka6 {[%emt 0:
00:00]} Bd6 {[%emt 0:03:49]} 62. Rh8+ {[%emt 0:03:22]} 1-0

[Event "44th Chess Olympiad Open 2022"]
[Site "Chennai"]
[Date "2022.08.02"]
[Round "5.71"]
[White "Winston Gerald, Mansfield Thomas"]
[Black "Diarra, Sirike"]
[Result "1-0"]
[WhiteElo "1832"]
[BlackElo "1641"]
[Annotator "NA RC"]
[PlyCount "56"]
[EventDate "2022.??.??"]
[TimeControl "60"]

1. d4 {[%emt 0:00:04]} d5 {[%emt 0:00:34]} 2. Bf4 {[%emt 0:00:17]} Nf6 {
[%emt 0:00:29]} 3. e3 {[%emt 0:00:11]} e6 {[%emt 0:00:41]} 4. Bd3 {[%emt 0:00:
00]} Be7 {[%emt 0:00:52]} 5. Nd2 {[%emt 0:00:11]} O-O {[%emt 0:01:03]} 6. c4 {
[%emt 0:00:11]} c5 {[%emt 0:01:20]} 7. Ngf3 {[%emt 0:02:39]} Nc6 {[%emt 0:00:
00]} 8. cxd5 {[%emt 0:00:16]} exd5 {[%emt 0:01:40]} 9. h3 {[%emt 0:01:02]} c4 {
[%emt 0:00:24]} 10. Bb1 {[%emt 0:00:12]} Bb4 {[%emt 0:00:42]} 11. a3 {[%emt 0:
00:00]} Ba5 {[%emt 0:00:06]} 12. O-O {[%emt 0:00:35]} h6 {[%emt 0:03:10]} 13.
Qc2 {[%emt 0:01:33]} Ne7 {[%emt 0:01:17]} 14. Ne5 {[%emt 0:00:37]} Bxd2 {
[%emt 0:03:18]} 15. Qxd2 Be6 {[%emt 0:00:30]} 16. f3 {[%emt 0:00:38]} Re8 {
[%emt 0:00:30]} 17. Rc1 {[%emt 0:00:30]} a5 {[%emt 0:00:30]} 18. g4 {[%emt 0:
00:00]} g5 {[%emt 0:00:30]} 19. Bg3 {[%emt 0:00:30]} Kg7 {[%emt 0:00:30]} 20.
Be1 {[%emt 0:00:30]} b6 {[%emt 0:00:30]} 21. Qh2 {[%emt 0:00:30]} Rh8 {[%emt 0:
00:00]} 22. f4 {[%emt 0:00:30]} Nfg8 {[%emt 0:00:30]} 23. f5 {[%emt 0:02:45]}
Bd7 {[%emt 0:11:44]} 24. Bd2 {[%emt 0:03:26]} Rc8 25. Bc3 {[%emt 0:00:23]} f6 {
[%emt 0:00:34]} 26. Nxd7 {[%emt 0:00:52]} Qxd7 {[%emt 0:00:04]} 27. Re1 {
[%emt 0:00:42]} h5 {[%emt 0:00:29]} 28. Qg2 {[%emt 0:00:31]} hxg4 {[%emt 0:00:
00]} 1-0

[Event "44th Chess Olympiad Open 2022"]
[Site "Chennai"]
[Date "2022.08.02"]
[Round "5.71"]
[White "Maiga, Baba Moulaye Abdall"]
[Black "Lwebuga, Ronald"]
[Result "0-1"]
[WhiteElo "1822"]
[BlackElo "1818"]
[Annotator "NA RC"]
[PlyCount "140"]
[EventDate "2022.??.??"]
[TimeControl "60"]

1. e4 {[%emt 0:00:03]} c5 {[%emt 0:00:06]} 2. Nf3 {[%emt 0:00:02]} Nc6 {
[%emt 0:00:13]} 3. Bc4 {[%emt 0:00:11]} e6 {[%emt 0:00:15]} 4. Nc3 {[%emt 0:00:
00]} a6 {[%emt 0:00:53]} 5. a4 {[%emt 0:00:02]} g6 {[%emt 0:00:45]} 6. d3 {
[%emt 0:00:42]} Bg7 {[%emt 0:00:22]} 7. O-O {[%emt 0:00:12]} Nge7 {[%emt 0:00:
00]} 8. Bf4 {[%emt 0:00:27]} d6 {[%emt 0:01:13]} 9. Re1 {[%emt 0:01:44]} O-O {
[%emt 0:00:12]} 10. Qd2 {[%emt 0:00:08]} Re8 {[%emt 0:00:24]} 11. Bh6 {[%emt 0:
00:00]} Bf6 {[%emt 0:03:57]} 12. h3 {[%emt 0:00:50]} Nd4 {[%emt 0:02:09]} 13.
Nh2 {[%emt 0:00:52]} Nec6 {[%emt 0:01:25]} 14. Ng4 {[%emt 0:00:23]} Bh8 {
[%emt 0:02:12]} 15. f4 {[%emt 0:03:39]} Nb4 {[%emt 0:06:55]} 16. Rac1 {[%emt 0:
00:00]} Qh4 {[%emt 0:06:22]} 17. Kh2 {[%emt 0:00:42]} Bg7 {[%emt 0:01:13]} 18.
Bg5 {[%emt 0:00:31]} Qh5 {[%emt 0:00:02]} 19. e5 {[%emt 0:02:58]} d5 {[%emt 0:
00:00]} 20. Bb3 {[%emt 0:02:27]} Bd7 {[%emt 0:00:43]} 21. Ne2 {[%emt 0:03:22]}
Nxe2 {[%emt 0:00:26]} 22. Rxe2 {[%emt 0:01:07]} Nc6 {[%emt 0:01:10]} 23. Nf6+ {
[%emt 0:00:37]} Bxf6 {[%emt 0:00:03]} 24. g4 {[%emt 0:05:57]} Nd4 {[%emt 0:00:
00]} 25. Rf2 {[%emt 0:05:17]} Bxg5 {[%emt 0:00:19]} 26. gxh5 {[%emt 0:00:00]}
Bh4 {[%emt 0:11:33]} 27. Rff1 {[%emt 0:00:00]} b5 {[%emt 0:00:27]} 28. a5 {
[%emt 0:00:00]} Bc6 {[%emt 0:00:36]} 29. Qd1 {[%emt 0:00:00]} Rad8 {[%emt 0:00:
00]} 30. c3 {[%emt 0:00:00]} Nf5 {[%emt 0:00:19]} 31. d4 {[%emt 0:00:00]} Ne3 {
[%emt 0:02:10]} 32. Qe2 {[%emt 0:01:25]} Nxf1+ {[%emt 0:00:16]} 33. Rxf1 {
[%emt 0:01:00]} Rc8 {[%emt 0:01:15]} 34. Qg4 {[%emt 0:00:56]} Bd8 {[%emt 0:00:
00]} 35. hxg6 {[%emt 0:01:21]} fxg6 {[%emt 0:07:59]} 36. Bc2 {[%emt 0:00:27]}
Rc7 {[%emt 0:00:08]} 37. f5 {[%emt 0:01:42]} exf5 {[%emt 0:01:20]} 38. Bxf5 {
[%emt 0:00:04]} cxd4 {[%emt 0:02:48]} 39. Be6+ {[%emt 0:01:00]} Kg7 {[%emt 0:
00:00]} 40. Rg1 {[%emt 0:01:44]} dxc3 {[%emt 0:07:26]} 41. bxc3 {[%emt 0:30:18]
} Rce7 {[%emt 0:36:59]} 42. Bf5 {[%emt 0:00:36]} Rxe5 {[%emt 0:00:53]} 43. h4 {
[%emt 0:19:03]} Rxf5 {[%emt 0:18:31]} 44. Qd4+ {[%emt 0:08:28]} Bf6 {[%emt 0:
00:00]} 45. Qc5 {[%emt 0:00:46]} Bb7 {[%emt 0:04:11]} 46. Qb6 {[%emt 0:12:21]}
Re7 {[%emt 0:00:14]} 47. Rg2 {[%emt 0:06:43]} Bxh4 {[%emt 0:02:03]} 48. Kh3 {
[%emt 0:03:49]} Bf6 {[%emt 0:00:39]} 49. Rc2 {[%emt 0:04:52]} Rf3+ {[%emt 0:00:
00]} 50. Kh2 {[%emt 0:01:06]} Rfe3 {[%emt 0:01:08]} 51. Rf2 {[%emt 0:01:21]}
R3e6 {[%emt 0:00:38]} 52. Qd8 {[%emt 0:01:41]} Re2 {[%emt 0:01:56]} 53. Qb6 {
[%emt 0:00:25]} Rxf2+ {[%emt 0:00:00]} 54. Qxf2 {[%emt 0:00:00]} Bxc3 {[%emt 0:
00:00]} 55. Qc5 {[%emt 0:00:00]} Bf6 {[%emt 0:00:00]} 56. Kg3 {[%emt 0:00:00]}
Rf7 {[%emt 0:00:00]} 57. Qc2 {[%emt 0:00:00]} d4 {[%emt 0:00:00]} 58. Kf4 {
[%emt 0:00:00]} Rd7 {[%emt 0:00:00]} 59. Qd3 {[%emt 0:00:00]} h5 {[%emt 0:00:
00]} 60. Kg3 {[%emt 0:00:00]} h4+ {[%emt 0:00:00]} 61. Kg4 {[%emt 0:00:00]} Re7
{[%emt 0:00:00]} 62. Qd2 {[%emt 0:00:00]} Re4+ {[%emt 0:00:00]} 63. Kh3 {
[%emt 0:00:00]} Bc8+ {[%emt 0:00:00]} 64. Kh2 {[%emt 0:00:00]} Bg4 {[%emt 0:00:
00]} 65. Qc1 {[%emt 0:00:00]} d3 {[%emt 0:00:00]} 66. Kg1 {[%emt 0:00:00]} h3 {
[%emt 0:00:00]} 67. Qc7+ {[%emt 0:00:00]} Re7 {[%emt 0:00:00]} 68. Qf4 {
[%emt 0:00:00]} Bf5 {[%emt 0:00:00]} 69. Qc1 {[%emt 0:00:00]} g5 {[%emt 0:00:
00]} 70. Kh2 {[%emt 0:00:00]} Re2+ {[%emt 0:00:00]} 0-1

[Event "44th Chess Olympiad Open 2022"]
[Site "Chennai"]
[Date "2022.08.02"]
[Round "5.71"]
[White "Adeshole Beckley, Brian"]
[Black "Coulibaly, Abdoulaye"]
[Result "0-1"]
[WhiteElo "1590"]
[BlackElo "1936"]
[Annotator "NA RC"]
[PlyCount "133"]
[EventDate "2022.??.??"]
[TimeControl "60"]

1. d4 {[%emt 0:00:20]} d5 {[%emt 0:00:10]} 2. c4 {[%emt 0:00:14]} c6 {[%emt 0:
00:00]} 3. Nc3 {[%emt 0:00:28]} Nf6 {[%emt 0:00:10]} 4. Nf3 {[%emt 0:01:34]}
Bg4 {[%emt 0:01:30]} 5. Qb3 {[%emt 0:04:56]} b6 {[%emt 0:06:23]} 6. Ne5 {
[%emt 0:04:09]} e6 {[%emt 0:05:17]} 7. Bg5 {[%emt 0:00:58]} Bf5 {[%emt 0:01:38]
} 8. g4 {[%emt 0:03:31]} Bg6 {[%emt 0:00:23]} 9. O-O-O {[%emt 0:04:42]} Be7 {
[%emt 0:00:20]} 10. Bg2 {[%emt 0:02:10]} O-O {[%emt 0:00:44]} 11. h4 {[%emt 0:
00:00]} h6 {[%emt 0:00:39]} 12. Nxg6 {[%emt 0:01:53]} fxg6 {[%emt 0:00:13]} 13.
Bxf6 {[%emt 0:01:08]} Rxf6 {[%emt 0:01:00]} 14. f3 {[%emt 0:00:52]} Rf8 {
[%emt 0:00:12]} 15. h5 {[%emt 0:05:23]} g5 {[%emt 0:00:42]} 16. e4 {[%emt 0:00:
00]} dxc4 {[%emt 0:05:49]} 17. Qxc4 {[%emt 0:00:15]} Qc8 {[%emt 0:01:06]} 18.
Ne2 {[%emt 0:07:18]} b5 {[%emt 0:00:27]} 19. Qb3 {[%emt 0:01:10]} a5 {[%emt 0:
00:00]} 20. Qd3 {[%emt 0:02:04]} Na6 {[%emt 0:00:38]} 21. a3 {[%emt 0:00:35]}
a4 {[%emt 0:01:06]} 22. Rhf1 {[%emt 0:02:49]} b4 {[%emt 0:00:29]} 23. f4 {
[%emt 0:00:46]} bxa3 {[%emt 0:00:20]} 24. bxa3 {[%emt 0:00:11]} Rb8 {[%emt 0:
00:00]} 25. Kd2 {[%emt 0:04:51]} Rb3 {[%emt 0:00:21]} 26. Qc4 {[%emt 0:00:42]}
Bxa3 {[%emt 0:00:33]} 27. Ke1 {[%emt 0:02:32]} Rb2 {[%emt 0:04:41]} 28. f5 {
[%emt 0:01:44]} Kh8 {[%emt 0:02:44]} 29. Rf2 {[%emt 0:04:54]} exf5 {[%emt 0:00:
00]} 30. exf5 {[%emt 0:00:50]} c5 {[%emt 0:02:02]} 31. Kf1 {[%emt 0:04:49]} Bb4
{[%emt 0:01:28]} 32. Bf3 {[%emt 0:02:03]} a3 {[%emt 0:01:01]} 33. d5 {[%emt 0:
00:00]} Re8 {[%emt 0:01:33]} 34. Nc3 {[%emt 0:00:39]} Re3 {[%emt 0:01:36]} 35.
Na2 {[%emt 0:01:24]} Qe8 {[%emt 0:13:58]} 36. Nxb4 {[%emt 0:02:51]} cxb4 {
[%emt 0:01:34]} 37. Rxb2 {[%emt 0:01:35]} axb2 {[%emt 0:02:10]} 38. Kf2 {
[%emt 0:04:38]} Rc3 {[%emt 0:00:16]} 39. Qe4 {[%emt 0:01:20]} Qxe4 {[%emt 0:00:
00]} 40. Bxe4 {[%emt 0:00:08]} Rc1 {[%emt 0:00:25]} 41. Ke2 {[%emt 0:30:57]}
Nc5 {[%emt 0:30:23]} 42. Bb1 {[%emt 0:00:35]} Na4 {[%emt 0:01:12]} 43. Kd2 {
[%emt 0:00:55]} Rc5 {[%emt 0:02:03]} 44. d6 {[%emt 0:03:41]} Nb6 {[%emt 0:00:
00]} 45. Ke3 {[%emt 0:00:19]} Rc1 {[%emt 0:00:36]} 46. Ke2 {[%emt 0:00:59]} Na4
{[%emt 0:00:46]} 47. Kd2 {[%emt 0:02:52]} Rc8 {[%emt 0:00:54]} 48. d7 {[%emt 0:
00:00]} Rd8 {[%emt 0:00:10]} 49. Kc2 {[%emt 0:00:47]} Nc5 {[%emt 0:00:02]} 50.
Kxb2 {[%emt 0:01:09]} Rxd7 {[%emt 0:00:17]} 51. Rxd7 {[%emt 0:02:42]} Nxd7 {
[%emt 0:00:58]} 52. Bc2 {[%emt 0:00:56]} Nc5 {[%emt 0:00:10]} 53. Bb3 {[%emt 0:
00:00]} Nd3+ {[%emt 0:00:27]} 54. Kb1 {[%emt 0:02:06]} Nf2 {[%emt 0:00:11]} 55.
Kc2 {[%emt 0:00:49]} Nxg4 {[%emt 0:00:11]} 56. Kd3 {[%emt 0:00:33]} Nf6 {
[%emt 0:00:22]} 57. Bf7 {[%emt 0:00:36]} g4 {[%emt 0:00:33]} 58. Ke3 {[%emt 0:
00:00]} b3 {[%emt 0:00:11]} 59. Bxb3 {[%emt 0:01:05]} Nxh5 {[%emt 0:00:10]} 60.
Bd1 {[%emt 0:00:56]} Nf6 {[%emt 0:00:09]} 61. Kf4 {[%emt 0:00:43]} Kg8 {
[%emt 0:02:56]} 62. Bxg4 {[%emt 0:00:58]} Nxg4 {[%emt 0:00:02]} 63. Kxg4 {
[%emt 0:00:13]} Kf7 {[%emt 0:00:05]} 64. Kf3 {[%emt 0:00:00]} Kf6 {[%emt 0:00:
00]} 65. Kf4 {[%emt 0:00:00]} h5 {[%emt 0:00:00]} 66. Ke4 {[%emt 0:00:00]} Kg5
{[%emt 0:00:00]} 67. Kd4 {[%emt 0:11:27]} 0-1

[Event "44th Chess Olympiad Open 2022"]
[Site "Chennai"]
[Date "2022.08.02"]
[Round "5.72"]
[White "Belzo, Krzysztof"]
[Black "Karelina, Polina"]
[Result "1-0"]
[WhiteElo "2080"]
[BlackElo "1835"]
[Annotator "NA RC"]
[PlyCount "63"]
[EventDate "2022.??.??"]
[TimeControl "60"]

1. d4 {[%emt 0:00:04]} Nf6 {[%emt 0:00:31]} 2. Nf3 {[%emt 0:00:30]} g6 {
[%emt 0:00:14]} 3. c4 {[%emt 0:00:15]} Bg7 {[%emt 0:00:18]} 4. Nc3 {[%emt 0:00:
00]} O-O {[%emt 0:00:16]} 5. g3 {[%emt 0:00:21]} d6 {[%emt 0:00:26]} 6. Bg2 {
[%emt 0:00:09]} Nc6 {[%emt 0:00:50]} 7. O-O {[%emt 0:07:46]} Bd7 {[%emt 0:00:
00]} 8. Bg5 {[%emt 0:01:22]} h6 {[%emt 0:02:33]} 9. Bf4 {[%emt 0:03:43]} Nh5 {
[%emt 0:03:09]} 10. Be3 {[%emt 0:00:52]} Qc8 {[%emt 0:03:11]} 11. Qd2 {[%emt 0:
00:00]} Kh7 {[%emt 0:01:06]} 12. d5 {[%emt 0:05:18]} Na5 {[%emt 0:05:44]} 13.
b3 {[%emt 0:03:01]} c5 {[%emt 0:08:43]} 14. dxc6 {[%emt 0:11:27]} Nxc6 {
[%emt 0:00:36]} 15. Nd4 {[%emt 0:04:34]} Bh3 {[%emt 0:04:00]} 16. Rac1 {
[%emt 0:04:27]} Bxg2 {[%emt 0:03:16]} 17. Kxg2 {[%emt 0:00:02]} Nxd4 {[%emt 0:
00:00]} 18. Bxd4 {[%emt 0:00:10]} Qc6+ {[%emt 0:01:03]} 19. f3 {[%emt 0:01:28]}
e5 {[%emt 0:02:18]} 20. Bg1 {[%emt 0:06:42]} f5 {[%emt 0:01:40]} 21. Rfd1 {
[%emt 0:03:14]} Rf6 {[%emt 0:04:09]} 22. Nb5 {[%emt 0:04:27]} a6 {[%emt 0:00:
00]} 23. Nxd6 {[%emt 0:04:35]} Rd8 {[%emt 0:00:19]} 24. c5 {[%emt 0:00:20]} Bf8
{[%emt 0:00:24]} 25. Qb4 {[%emt 0:16:06]} b6 {[%emt 0:11:27]} 26. cxb6 {
[%emt 0:02:31]} Qa8 {[%emt 0:10:09]} 27. Rc7+ {[%emt 0:02:17]} Ng7 {[%emt 0:00:
00]} 28. Bc5 {[%emt 0:00:15]} a5 {[%emt 0:02:38]} 29. Qb5 {[%emt 0:06:32]} e4 {
[%emt 0:06:47]} 30. b7 {[%emt 0:01:44]} Qb8 {[%emt 0:00:17]} 31. Rc8 {[%emt 0:
00:00]} Rxc8 {[%emt 0:00:20]} 32. bxc8=Q {[%emt 0:00:27]} 1-0